[Event "Early-Titled-Tuesday-Blitz-February-13-2024"]
[Site "Chess.com"]
[Date "2024.02.13"]
[Round "1"]
[White "JERO-8914"]
[Black "Onischuk_V"]
[Result "0-1"]
[WhiteElo "2439"]
[BlackElo "2790"]
[TimeControl "180+1"]
[EndTime "8:08:47 PST"]
[Termination "Onischuk_V won by resignation"]

1. e4 {[%clk 0:02:58.9]} 1... d6 {[%clk 0:03:00.9]} 2. d4 {[%clk 0:02:58.4]}
2... Nf6 {[%clk 0:02:57.5]} 3. Bd3 {[%clk 0:02:47.1]} 3... e5 {[%clk 0:02:56.6]}
4. c3 {[%clk 0:02:47.4]} 4... d5 {[%clk 0:02:53.8]} 5. dxe5 {[%clk 0:02:44.9]}
5... Nxe4 {[%clk 0:02:53.7]} 6. Nf3 {[%clk 0:02:44.3]} 6... Nc6 {[%clk
0:02:51.4]} 7. O-O {[%clk 0:02:44.2]} 7... Bg4 {[%clk 0:02:46.6]} 8. Nbd2 {[%clk
0:02:39.8]} 8... Nxe5 {[%clk 0:02:14.6]} 9. Bxe4 {[%clk 0:02:38.6]} 9... dxe4
{[%clk 0:02:12.6]} 10. Qa4+ {[%clk 0:02:38.8]} 10... Nc6 {[%clk 0:02:12.5]} 11.
Qxe4+ {[%clk 0:02:38.4]} 11... Be6 {[%clk 0:02:13.1]} 12. Nb3 {[%clk 0:02:32.7]}
12... Qd5 {[%clk 0:02:11.5]} 13. Qxd5 {[%clk 0:02:23.3]} 13... Bxd5 {[%clk
0:02:11.3]} 14. Re1+ {[%clk 0:02:23.9]} 14... Be7 {[%clk 0:02:10.6]} 15. Nfd4
{[%clk 0:02:19.4]} 15... O-O-O {[%clk 0:02:04.1]} 16. Nxc6 {[%clk 0:02:06.1]}
16... Bxc6 {[%clk 0:02:03.2]} 17. Nd4 {[%clk 0:02:02.6]} 17... Bc5 {[%clk
0:02:02.6]} 18. Nxc6 {[%clk 0:02:02.2]} 18... bxc6 {[%clk 0:02:02]} 19. Bf4
{[%clk 0:01:59.9]} 19... Rhe8 {[%clk 0:01:49.3]} 20. Rxe8 {[%clk 0:01:57.2]}
20... Rxe8 {[%clk 0:01:49.3]} 21. Kf1 {[%clk 0:01:57.5]} 21... h5 {[%clk
0:01:43.2]} 22. Rd1 {[%clk 0:01:48.5]} 22... f6 {[%clk 0:01:37.4]} 23. h3 {[%clk
0:01:41.6]} 23... Re4 {[%clk 0:01:33.2]} 24. Be3 {[%clk 0:01:35.4]} 24... Bxe3
{[%clk 0:01:31.2]} 25. Re1 {[%clk 0:01:35.5]} 25... Ra4 {[%clk 0:01:30.8]} 26.
Rxe3 {[%clk 0:01:34.2]} 26... Rxa2 {[%clk 0:01:30.9]} 27. b4 {[%clk 0:01:33.3]}
27... c5 {[%clk 0:01:26.4]} 28. Re7 {[%clk 0:01:25.5]} 28... cxb4 {[%clk
0:01:25.6]} 29. cxb4 {[%clk 0:01:25.2]} 29... Rb2 {[%clk 0:01:24.6]} 30. Re4
{[%clk 0:01:22.5]} 30... Kd7 {[%clk 0:01:22.4]} 31. g4 {[%clk 0:01:22.5]} 31...
h4 {[%clk 0:01:20.5]} 32. f4 {[%clk 0:01:18.3]} 32... Rb3 {[%clk 0:00:40.9]} 33.
Kg2 {[%clk 0:01:17.4]} 33... Rg3+ {[%clk 0:00:38.8]} 34. Kh2 {[%clk 0:01:16.5]}
34... g6 {[%clk 0:00:39.1]} 35. f5 {[%clk 0:01:08.7]} 35... gxf5 {[%clk
0:00:38.9]} 36. gxf5 {[%clk 0:01:09.6]} 36... Rf3 {[%clk 0:00:39.2]} 37. Rxh4
{[%clk 0:01:09.7]} 37... Rxf5 {[%clk 0:00:39.9]} 38. Rc4 {[%clk 0:01:04.4]}
38... a5 {[%clk 0:00:32.7]} 39. bxa5 {[%clk 0:01:03.6]} 39... Rxa5 {[%clk
0:00:32.8]} 40. Kg3 {[%clk 0:01:03.7]} 40... Kd6 {[%clk 0:00:33]} 41. h4 {[%clk
0:01:01.4]} 41... Ra1 {[%clk 0:00:28.5]} 42. h5 {[%clk 0:01:00.8]} 42... Rh1
{[%clk 0:00:28.3]} 43. Rd4+ {[%clk 0:00:30.5]} 43... Ke6 {[%clk 0:00:20.7]} 44.
Rc4 {[%clk 0:00:27.1]} 44... Rxh5 {[%clk 0:00:13.1]} 45. Rxc7 {[%clk 0:00:27]}
45... Ra5 {[%clk 0:00:13.2]} 46. Kf4 {[%clk 0:00:24.9]} 46... Ra4+ {[%clk
0:00:12.8]} 47. Kf3 {[%clk 0:00:24.9]} 47... Rd4 {[%clk 0:00:11.3]} 48. Rc6+
{[%clk 0:00:25]} 48... Ke5 {[%clk 0:00:10.6]} 49. Ra6 {[%clk 0:00:24.3]} 49...
Rd5 {[%clk 0:00:09.2]} 50. Ra4 {[%clk 0:00:23.9]} 50... Kf5 {[%clk 0:00:08.7]}
51. Rb4 {[%clk 0:00:22.6]} 51... Rd3+ {[%clk 0:00:08.3]} 52. Kf2 {[%clk
0:00:22.3]} 52... Ra3 {[%clk 0:00:08.9]} 53. Kg2 {[%clk 0:00:21.6]} 53... Kg5
{[%clk 0:00:09.2]} 54. Kf2 {[%clk 0:00:22]} 54... f5 {[%clk 0:00:09.4]} 55. Kg2
{[%clk 0:00:21.8]} 55... Rd3 {[%clk 0:00:08.5]} 56. Kf2 {[%clk 0:00:22]} 56...
Kf6 {[%clk 0:00:09.1]} 57. Ke2 {[%clk 0:00:21.8]} 57... Rh3 {[%clk 0:00:09.5]}
58. Kf2 {[%clk 0:00:22.2]} 58... Ke5 {[%clk 0:00:10.1]} 59. Kg2 {[%clk
0:00:22.3]} 59... Rd3 {[%clk 0:00:09.7]} 60. Kf2 {[%clk 0:00:22.7]} 60... Ra3
{[%clk 0:00:09.5]} 61. Ke2 {[%clk 0:00:22.6]} 61... Rc3 {[%clk 0:00:09.4]} 62.
Kf2 {[%clk 0:00:23]} 62... f4 {[%clk 0:00:08.8]} 63. Ra4 {[%clk 0:00:22.1]}
63... Kf5 {[%clk 0:00:08.3]} 64. Ra5+ {[%clk 0:00:18.6]} 64... Kg4 {[%clk
0:00:08.5]} 65. Ra4 {[%clk 0:00:13.3]} 65... Rc2+ {[%clk 0:00:08.6]} 66. Kf1
{[%clk 0:00:13.5]} 66... Kg3 {[%clk 0:00:08.9]} 67. Ra3+ {[%clk 0:00:08.7]}
67... f3 {[%clk 0:00:08.9]} 68. Ra1 {[%clk 0:00:08.9]} 68... Rh2 {[%clk
0:00:09]} 0-1

[Event "Early-Titled-Tuesday-Blitz-February-13-2024"]
[Site "Chess.com"]
[Date "2024.02.13"]
[Round "1"]
[White "Leonid_Starozhilov"]
[Black "PositionalPanther"]
[Result "1/2-1/2"]
[WhiteElo "2738"]
[BlackElo "2421"]
[TimeControl "180+1"]
[EndTime "8:08:50 PST"]
[Termination "Game drawn by repetition"]

1. e4 {[%clk 0:03:00.9]} 1... e6 {[%clk 0:02:59.2]} 2. d4 {[%clk 0:03:00.4]}
2... d5 {[%clk 0:02:59.3]} 3. e5 {[%clk 0:03:00.7]} 3... c5 {[%clk 0:02:58]} 4.
c3 {[%clk 0:03:00.6]} 4... Nc6 {[%clk 0:02:55]} 5. Nf3 {[%clk 0:02:57.5]} 5...
Bd7 {[%clk 0:02:55.2]} 6. a3 {[%clk 0:02:57.5]} 6... Nge7 {[%clk 0:02:51.5]} 7.
Bd3 {[%clk 0:02:57.3]} 7... cxd4 {[%clk 0:02:49.9]} 8. cxd4 {[%clk 0:02:57.4]}
8... Qb6 {[%clk 0:02:50.2]} 9. Bc2 {[%clk 0:02:57.4]} 9... Nf5 {[%clk 0:02:50]}
10. Bxf5 {[%clk 0:02:58]} 10... exf5 {[%clk 0:02:50.9]} 11. Nc3 {[%clk
0:02:58.6]} 11... Be6 {[%clk 0:02:50.8]} 12. O-O {[%clk 0:02:56.2]} 12... h6
{[%clk 0:02:50.3]} 13. h4 {[%clk 0:02:50.5]} 13... Be7 {[%clk 0:02:50.1]} 14. b4
{[%clk 0:02:50]} 14... O-O {[%clk 0:02:29.1]} 15. Be3 {[%clk 0:02:45.5]} 15...
Rfe8 {[%clk 0:02:16.6]} 16. Qd3 {[%clk 0:02:42.2]} 16... Qd8 {[%clk 0:02:12.3]}
17. g3 {[%clk 0:02:39.6]} 17... g5 {[%clk 0:02:06.8]} 18. hxg5 {[%clk
0:02:39.6]} 18... hxg5 {[%clk 0:02:07.7]} 19. Qd2 {[%clk 0:02:25.9]} 19... Kg7
{[%clk 0:01:51.8]} 20. Bxg5 {[%clk 0:02:15.6]} 20... Bxg5 {[%clk 0:01:41.3]} 21.
Nxg5 {[%clk 0:02:15.8]} 21... Nxd4 {[%clk 0:01:28.8]} 22. Nxe6+ {[%clk
0:02:11.9]} 22... Nxe6 {[%clk 0:01:29.7]} 23. Qxd5 {[%clk 0:02:00.5]} 23... Qg5
{[%clk 0:01:13]} 24. Qf3 {[%clk 0:01:27.8]} 24... Rac8 {[%clk 0:01:00.1]} 25.
Ne2 {[%clk 0:01:16.4]} 25... Rh8 {[%clk 0:00:38.8]} 26. Rac1 {[%clk 0:00:59.6]}
26... Qh6 {[%clk 0:00:30.3]} 27. Rfd1 {[%clk 0:00:46.2]} 27... Rxc1 {[%clk
0:00:18.8]} 28. Rxc1 {[%clk 0:00:46]} 28... Qh2+ {[%clk 0:00:17.5]} 29. Kf1
{[%clk 0:00:46]} 29... Ng5 {[%clk 0:00:18]} 30. Qg2 {[%clk 0:00:35.2]} 30...
Qh1+ {[%clk 0:00:17.9]} 31. Qxh1 {[%clk 0:00:34.4]} 31... Rxh1+ {[%clk
0:00:18.8]} 32. Kg2 {[%clk 0:00:35.2]} 32... Rxc1 {[%clk 0:00:18.4]} 33. Nxc1
{[%clk 0:00:35.7]} 33... f6 {[%clk 0:00:13.7]} 34. exf6+ {[%clk 0:00:28.2]}
34... Kxf6 {[%clk 0:00:14.6]} 35. Nd3 {[%clk 0:00:27.4]} 35... b6 {[%clk
0:00:13.6]} 36. f3 {[%clk 0:00:27.4]} 36... Ne6 {[%clk 0:00:13.7]} 37. Kf2
{[%clk 0:00:27.4]} 37... Nd4 {[%clk 0:00:13.9]} 38. a4 {[%clk 0:00:22.3]} 38...
Nc2 {[%clk 0:00:11.7]} 39. g4 {[%clk 0:00:18.6]} 39... a5 {[%clk 0:00:11.4]} 40.
bxa5 {[%clk 0:00:16.5]} 40... bxa5 {[%clk 0:00:12.3]} 41. Kg3 {[%clk 0:00:13.4]}
41... Na3 {[%clk 0:00:12.1]} 42. Kf4 {[%clk 0:00:11.9]} 42... fxg4 {[%clk
0:00:12.5]} 43. fxg4 {[%clk 0:00:12.3]} 43... Nc4 {[%clk 0:00:13.2]} 44. g5+
{[%clk 0:00:12.8]} 44... Kg6 {[%clk 0:00:12.1]} 45. Nc5 {[%clk 0:00:07.9]} 45...
Nb6 {[%clk 0:00:11.9]} 46. Kg4 {[%clk 0:00:04.7]} 46... Kg7 {[%clk 0:00:11.8]}
47. Kf5 {[%clk 0:00:04.6]} 47... Nc4 {[%clk 0:00:11.6]} 48. Ne6+ {[%clk
0:00:04.5]} 48... Kf7 {[%clk 0:00:11.2]} 49. g6+ {[%clk 0:00:04.8]} 49... Kg8
{[%clk 0:00:11.8]} 50. Nc5 {[%clk 0:00:05.2]} 50... Nb6 {[%clk 0:00:12.1]} 51.
Kf6 {[%clk 0:00:05.1]} 51... Nc4 {[%clk 0:00:09.3]} 52. g7 {[%clk 0:00:04.9]}
52... Nb6 {[%clk 0:00:09.5]} 53. Kg6 {[%clk 0:00:05.1]} 53... Nd5 {[%clk
0:00:10]} 54. Nd7 {[%clk 0:00:04.6]} 54... Ne7+ {[%clk 0:00:09.6]} 55. Kf6
{[%clk 0:00:04.7]} 55... Nd5+ {[%clk 0:00:09.9]} 56. Kg6 {[%clk 0:00:04.8]}
56... Ne7+ {[%clk 0:00:10.1]} 57. Kh6 {[%clk 0:00:05.4]} 57... Nd5 {[%clk
0:00:10]} 58. Ne5 {[%clk 0:00:05.4]} 58... Ne7 {[%clk 0:00:05.9]} 59. Ng4 {[%clk
0:00:03.9]} 59... Nd5 {[%clk 0:00:06]} 60. Kg6 {[%clk 0:00:03.9]} 60... Ne7+
{[%clk 0:00:06.1]} 61. Kf6 {[%clk 0:00:04.6]} 61... Nd5+ {[%clk 0:00:06.4]} 62.
Ke5 {[%clk 0:00:04]} 62... Nb6 {[%clk 0:00:06.4]} 63. Kf6 {[%clk 0:00:02.7]}
63... Nd5+ {[%clk 0:00:06.8]} 64. Kg6 {[%clk 0:00:02.6]} 64... Ne7+ {[%clk
0:00:07]} 65. Kh6 {[%clk 0:00:02.7]} 65... Nd5 {[%clk 0:00:07.1]} 66. Ne5 {[%clk
0:00:02.6]} 66... Ne7 {[%clk 0:00:03.2]} 67. Nd7 {[%clk 0:00:02.9]} 67... Nd5
{[%clk 0:00:03.6]} 68. Kg6 {[%clk 0:00:03.1]} 1/2-1/2

[Event "Early-Titled-Tuesday-Blitz-February-13-2024"]
[Site "Chess.com"]
[Date "2024.02.13"]
[Round "1"]
[White "LeoLV10"]
[Black "CFN_Good_Evening"]
[Result "0-1"]
[WhiteElo "2547"]
[BlackElo "2045"]
[TimeControl "180+1"]
[EndTime "8:08:53 PST"]
[Termination "CFN_Good_Evening won by checkmate"]

1. e4 {[%clk 0:03:00.1]} 1... c5 {[%clk 0:02:55.9]} 2. Nf3 {[%clk 0:02:57.6]}
2... Nc6 {[%clk 0:02:54.2]} 3. d4 {[%clk 0:02:56.2]} 3... cxd4 {[%clk
0:02:55.1]} 4. Nxd4 {[%clk 0:02:57.1]} 4... Nf6 {[%clk 0:02:54.3]} 5. Nc3 {[%clk
0:02:57.1]} 5... e5 {[%clk 0:02:54.7]} 6. Ndb5 {[%clk 0:02:57.7]} 6... d6 {[%clk
0:02:54.2]} 7. Bg5 {[%clk 0:02:57.6]} 7... a6 {[%clk 0:02:54]} 8. Na3 {[%clk
0:02:57.2]} 8... b5 {[%clk 0:02:54.2]} 9. Nd5 {[%clk 0:02:57.7]} 9... Qa5+
{[%clk 0:02:54.4]} 10. Bd2 {[%clk 0:02:46.7]} 10... Qd8 {[%clk 0:02:53.8]} 11.
Bg5 {[%clk 0:02:07.3]} 11... Be7 {[%clk 0:02:52.2]} 12. Bxf6 {[%clk 0:02:07]}
12... Bxf6 {[%clk 0:02:53.1]} 13. c3 {[%clk 0:02:05]} 13... Bg5 {[%clk
0:02:50.1]} 14. Nc2 {[%clk 0:02:04.8]} 14... Ne7 {[%clk 0:02:49.6]} 15. Nxe7
{[%clk 0:01:35.7]} 15... Qxe7 {[%clk 0:02:44.7]} 16. Be2 {[%clk 0:01:30.7]}
16... O-O {[%clk 0:02:42.3]} 17. O-O {[%clk 0:01:30.6]} 17... f5 {[%clk
0:02:40]} 18. f3 {[%clk 0:01:23.4]} 18... Be6 {[%clk 0:02:34.1]} 19. Nb4 {[%clk
0:01:19.5]} 19... Be3+ {[%clk 0:02:24.2]} 20. Kh1 {[%clk 0:01:17.3]} 20... f4
{[%clk 0:02:18.7]} 21. Nd5 {[%clk 0:01:11.3]} 21... Qh4 {[%clk 0:02:11.7]} 22.
Nxe3 {[%clk 0:01:07.7]} 22... fxe3 {[%clk 0:02:10.7]} 23. Qxd6 {[%clk
0:01:02.7]} 23... Rf6 {[%clk 0:02:10.7]} 24. Qxe5 {[%clk 0:00:57.5]} 24... Rh6
{[%clk 0:02:01.8]} 25. Kg1 {[%clk 0:00:45.5]} 25... Rf8 {[%clk 0:02:00.3]} 26.
Qg3 {[%clk 0:00:43.3]} 26... Qe7 {[%clk 0:01:55.8]} 27. f4 {[%clk 0:00:38.5]}
27... Qc5 {[%clk 0:01:53.7]} 28. f5 {[%clk 0:00:35]} 28... Bc8 {[%clk
0:01:51.2]} 29. Rf3 {[%clk 0:00:27.2]} 29... Bb7 {[%clk 0:01:44.8]} 30. Rxe3
{[%clk 0:00:21.9]} 30... Bxe4 {[%clk 0:01:44.9]} 31. Rf1 {[%clk 0:00:17.1]}
31... Bxf5 {[%clk 0:01:41.3]} 32. Kh1 {[%clk 0:00:15.5]} 32... Rhf6 {[%clk
0:01:40.9]} 33. Ref3 {[%clk 0:00:15.7]} 33... Qe7 {[%clk 0:01:37.6]} 34. Re3
{[%clk 0:00:13]} 34... Qb7 {[%clk 0:01:36.8]} 35. Rg1 {[%clk 0:00:13.1]} 35...
Kh8 {[%clk 0:01:36.2]} 36. Bf3 {[%clk 0:00:13.2]} 36... Qb6 {[%clk 0:01:35.8]}
37. Qe1 {[%clk 0:00:13.7]} 37... Be6 {[%clk 0:01:33]} 38. Re5 {[%clk 0:00:13]}
38... Bxa2 {[%clk 0:01:32.9]} 39. Re7 {[%clk 0:00:12.7]} 39... a5 {[%clk
0:01:21.8]} 40. Qg3 {[%clk 0:00:12.4]} 40... Rg6 {[%clk 0:01:18.3]} 41. Qe5
{[%clk 0:00:12]} 41... Bg8 {[%clk 0:01:17.1]} 42. Re1 {[%clk 0:00:11.7]} 42...
b4 {[%clk 0:01:13.6]} 43. Re8 {[%clk 0:00:11.7]} 43... Qf6 {[%clk 0:01:10.1]}
44. Rxf8 {[%clk 0:00:11.1]} 44... Qxf8 {[%clk 0:01:10]} 45. Qxa5 {[%clk
0:00:11.3]} 45... bxc3 {[%clk 0:01:07.9]} 46. Qxc3 {[%clk 0:00:12.2]} 46... Rb6
{[%clk 0:01:06.8]} 47. Rb1 {[%clk 0:00:11.7]} 47... h6 {[%clk 0:01:06.4]} 48. b4
{[%clk 0:00:11.8]} 48... Bh7 {[%clk 0:01:06.8]} 49. Rb2 {[%clk 0:00:10.9]} 49...
Qd6 {[%clk 0:01:03.8]} 50. h3 {[%clk 0:00:09.7]} 50... Rb8 {[%clk 0:01:03]} 51.
b5 {[%clk 0:00:06.4]} 51... Bg8 {[%clk 0:00:58.3]} 52. Bc6 {[%clk 0:00:06]}
52... Qf4 {[%clk 0:00:57.1]} 53. Qf3 {[%clk 0:00:05.3]} 53... Qc1+ {[%clk
0:00:55.8]} 54. Kh2 {[%clk 0:00:05.8]} 54... Qxb2 {[%clk 0:00:56.2]} 55. Qf4
{[%clk 0:00:06.2]} 55... Rxb5 {[%clk 0:00:52.6]} 56. Bxb5 {[%clk 0:00:05.9]}
56... Qxb5 {[%clk 0:00:53.5]} 57. h4 {[%clk 0:00:06.5]} 57... Qd5 {[%clk
0:00:53.9]} 58. g3 {[%clk 0:00:06.5]} 58... Qa2+ {[%clk 0:00:53.1]} 59. Kh3
{[%clk 0:00:06.6]} 59... Qf7 {[%clk 0:00:54]} 60. Qd4 {[%clk 0:00:06.3]} 60...
Qe6+ {[%clk 0:00:53.9]} 61. Kh2 {[%clk 0:00:06.9]} 61... Bf7 {[%clk 0:00:54.3]}
62. Qf4 {[%clk 0:00:07.4]} 62... Qa2+ {[%clk 0:00:53.9]} 63. Kh3 {[%clk
0:00:07.3]} 63... Qd5 {[%clk 0:00:54.8]} 64. Kh2 {[%clk 0:00:06.7]} 64... Be6
{[%clk 0:00:54.5]} 65. g4 {[%clk 0:00:06]} 65... Bg8 {[%clk 0:00:49.2]} 66. h5
{[%clk 0:00:06.1]} 66... Qg5 {[%clk 0:00:48.6]} 67. Qd4 {[%clk 0:00:05.4]} 67...
Be6 {[%clk 0:00:46.4]} 68. Kg3 {[%clk 0:00:05.2]} 68... Qf6 {[%clk 0:00:44.9]}
69. Qb4 {[%clk 0:00:03.7]} 69... Qe5+ {[%clk 0:00:44.4]} 70. Kh3 {[%clk
0:00:03.8]} 70... Bg8 {[%clk 0:00:44.5]} 71. Qf8 {[%clk 0:00:03.3]} 71... Qe3+
{[%clk 0:00:43.7]} 72. Kh4 {[%clk 0:00:03.9]} 72... Qg5+ {[%clk 0:00:43.9]} 73.
Kg3 {[%clk 0:00:04.5]} 73... Kh7 {[%clk 0:00:44.8]} 74. Qa8 {[%clk 0:00:03.4]}
74... Bd5 {[%clk 0:00:40.6]} 75. Qf8 {[%clk 0:00:02.6]} 75... Be6 {[%clk
0:00:39.9]} 76. Qb4 {[%clk 0:00:02.6]} 76... Qe5+ {[%clk 0:00:35.2]} 77. Kh4
{[%clk 0:00:02.8]} 77... Qh2# {[%clk 0:00:33.8]} 0-1

[Event "Early-Titled-Tuesday-Blitz-February-13-2024"]
[Site "Chess.com"]
[Date "2024.02.13"]
[Round "1"]
[White "Alex_Terzi"]
[Black "Igor_Lysyj"]
[Result "0-1"]
[WhiteElo "2484"]
[BlackElo "2865"]
[TimeControl "180+1"]
[EndTime "8:09:12 PST"]
[Termination "Igor_Lysyj won by resignation"]

1. e4 {[%clk 0:03:00.4]} 1... e5 {[%clk 0:02:59.8]} 2. Nf3 {[%clk 0:02:46.6]}
2... Nc6 {[%clk 0:02:59.5]} 3. d4 {[%clk 0:02:10.4]} 3... exd4 {[%clk
0:02:58.8]} 4. Nxd4 {[%clk 0:02:10.7]} 4... Nf6 {[%clk 0:02:58.3]} 5. Nxc6
{[%clk 0:02:09.8]} 5... bxc6 {[%clk 0:02:58]} 6. e5 {[%clk 0:02:09.9]} 6... Qe7
{[%clk 0:02:57.6]} 7. Qe2 {[%clk 0:02:10]} 7... Nd5 {[%clk 0:02:57.7]} 8. c4
{[%clk 0:02:09.6]} 8... Ba6 {[%clk 0:02:57.3]} 9. b3 {[%clk 0:02:09.8]} 9... g6
{[%clk 0:02:54.7]} 10. g3 {[%clk 0:02:07.9]} 10... Bg7 {[%clk 0:02:52.3]} 11.
Bb2 {[%clk 0:02:08]} 11... O-O {[%clk 0:02:49.3]} 12. Bg2 {[%clk 0:02:08]} 12...
Rae8 {[%clk 0:02:45.4]} 13. O-O {[%clk 0:02:07.5]} 13... Bxe5 {[%clk 0:02:41.4]}
14. Qxe5 {[%clk 0:02:07.1]} 14... Qxe5 {[%clk 0:02:41.3]} 15. Bxe5 {[%clk
0:02:07.4]} 15... Rxe5 {[%clk 0:02:41]} 16. cxd5 {[%clk 0:02:07.8]} 16... Bxf1
{[%clk 0:02:41]} 17. Kxf1 {[%clk 0:02:08.2]} 17... cxd5 {[%clk 0:02:41.3]} 18.
Nc3 {[%clk 0:02:07.8]} 18... c6 {[%clk 0:02:40.7]} 19. Rc1 {[%clk 0:02:06.9]}
19... Rb8 {[%clk 0:02:36.5]} 20. Na4 {[%clk 0:02:05.6]} 20... Kf8 {[%clk
0:02:30.4]} 21. Bf3 {[%clk 0:02:02.3]} 21... Ke7 {[%clk 0:02:26.7]} 22. Nc5
{[%clk 0:02:02.2]} 22... Kd6 {[%clk 0:02:25.2]} 23. Nd3 {[%clk 0:02:00.8]} 23...
Ree8 {[%clk 0:02:23.2]} 24. Rc5 {[%clk 0:01:59.5]} 24... Ra8 {[%clk 0:01:53.6]}
25. Ra5 {[%clk 0:01:46.6]} 25... Kc7 {[%clk 0:01:51.7]} 26. Rc5 {[%clk
0:01:40.6]} 26... Kb6 {[%clk 0:01:48.6]} 27. Rc2 {[%clk 0:01:36.8]} 27... a5
{[%clk 0:01:47.8]} 28. Nb2 {[%clk 0:01:37.1]} 28... Re5 {[%clk 0:01:44.6]} 29.
Nd3 {[%clk 0:01:33.8]} 29... Re7 {[%clk 0:01:44.2]} 30. Nb2 {[%clk 0:01:33.3]}
30... Rae8 {[%clk 0:01:43.9]} 31. Nd3 {[%clk 0:01:32.3]} 31... f5 {[%clk
0:01:40.1]} 32. h4 {[%clk 0:01:30.6]} 32... h6 {[%clk 0:01:38.1]} 33. Kg2 {[%clk
0:01:21.8]} 33... g5 {[%clk 0:01:38.1]} 34. hxg5 {[%clk 0:01:21.1]} 34... hxg5
{[%clk 0:01:38.2]} 35. g4 {[%clk 0:01:21]} 35... f4 {[%clk 0:01:33.8]} 36. Kf1
{[%clk 0:01:18.7]} 36... Rh8 {[%clk 0:01:32.5]} 37. Kg2 {[%clk 0:01:18.6]} 37...
Rh6 {[%clk 0:01:24.8]} 38. Kg1 {[%clk 0:01:16.8]} 38... Rh8 {[%clk 0:01:12.8]}
39. Kg2 {[%clk 0:01:16.1]} 39... Ra8 {[%clk 0:01:12.3]} 40. a3 {[%clk
0:01:09.8]} 40... Rb8 {[%clk 0:01:01.7]} 41. Kf1 {[%clk 0:01:04.5]} 41... Ka7
{[%clk 0:01:01.4]} 42. b4 {[%clk 0:01:02.3]} 42... axb4 {[%clk 0:01:01.4]} 43.
axb4 {[%clk 0:00:59.6]} 43... Kb6 {[%clk 0:01:01.6]} 44. Ra2 {[%clk 0:00:58.7]}
44... d6 {[%clk 0:01:01.3]} 45. Ra3 {[%clk 0:00:54.5]} 45... Ra7 {[%clk
0:00:56.3]} 46. Rxa7 {[%clk 0:00:49.1]} 46... Kxa7 {[%clk 0:00:55.8]} 47. Ke2
{[%clk 0:00:45]} 47... Kb6 {[%clk 0:00:55.6]} 48. Kd2 {[%clk 0:00:44]} 48... Ra8
{[%clk 0:00:54.9]} 49. Bd1 {[%clk 0:00:43.8]} 49... Ra2+ {[%clk 0:00:53.9]} 50.
Bc2 {[%clk 0:00:43.5]} 50... c5 {[%clk 0:00:52.7]} 51. bxc5+ {[%clk 0:00:41.6]}
51... dxc5 {[%clk 0:00:52.9]} 52. Ne5 {[%clk 0:00:38.9]} 52... c4 {[%clk
0:00:51]} 53. Nf3 {[%clk 0:00:35.5]} 53... Kc5 {[%clk 0:00:48]} 54. Nxg5 {[%clk
0:00:35.5]} 54... d4 {[%clk 0:00:48.6]} 55. Ne6+ {[%clk 0:00:35.2]} 55... Kd5
{[%clk 0:00:44]} 56. Nxf4+ {[%clk 0:00:34.9]} 56... Ke5 {[%clk 0:00:44.5]} 57.
Ng6+ {[%clk 0:00:31.9]} 57... Kf6 {[%clk 0:00:44.8]} 58. Nf4 {[%clk 0:00:30.5]}
58... Ke5 {[%clk 0:00:40.5]} 59. Ng6+ {[%clk 0:00:30.5]} 59... Kd6 {[%clk
0:00:40.9]} 60. Nf4 {[%clk 0:00:26.9]} 60... Ra3 {[%clk 0:00:40.3]} 61. g5
{[%clk 0:00:24.9]} 61... Rf3 {[%clk 0:00:40.1]} 62. Ne2 {[%clk 0:00:18.3]} 62...
d3 {[%clk 0:00:37.7]} 63. Bd1 {[%clk 0:00:15.5]} 63... Rxf2 {[%clk 0:00:35.6]}
64. Ke3 {[%clk 0:00:13.2]} 64... Rg2 {[%clk 0:00:34.1]} 65. Nf4 {[%clk
0:00:10.2]} 65... Rxg5 {[%clk 0:00:32.4]} 66. Nxd3 {[%clk 0:00:04.6]} 66... Rg3+
{[%clk 0:00:32.3]} 67. Kd2 {[%clk 0:00:02.7]} 67... Rxd3+ {[%clk 0:00:31.9]} 68.
Kc2 {[%clk 0:00:03.3]} 68... Kc5 {[%clk 0:00:30.8]} 69. Be2 {[%clk 0:00:04.2]}
69... Rg3 {[%clk 0:00:30.7]} 70. Kd2 {[%clk 0:00:04.5]} 70... Kd4 {[%clk
0:00:31]} 71. Bd1 {[%clk 0:00:04.6]} 71... Rg2+ {[%clk 0:00:30.7]} 72. Kc1
{[%clk 0:00:04.8]} 72... Kc3 {[%clk 0:00:30.3]} 73. Kb1 {[%clk 0:00:04.4]} 73...
Rg1 {[%clk 0:00:29.7]} 74. Kc1 {[%clk 0:00:04.9]} 74... Rh1 {[%clk 0:00:29.8]}
75. Kb1 {[%clk 0:00:04.7]} 75... Rxd1+ {[%clk 0:00:29.9]} 0-1